Cogmind - Beta 11.1 @@@ ROGUE MODE // 2022.05.20 @ 08:30:32 Player: Jamuson Result: Destroyed by G-34 Mercenary with Small Laser Performance ------------- Evolutions (0) 0 Regions Visited (1) 200 Robots Destroyed (20) 100 Value Destroyed (417) 417 Prototype IDs (2) 40 Alien Tech Used (0) 0 Bonus (0) 0 TOTAL SCORE: 757 Bonus ------- None Cogmind --------- Core Integrity 0/250 Matter 244/300 Energy 250/250 System Corruption 0% Temperature Cool (6) Movement Rolling (115) Ox1 Location -10/Materials Parts ------- > --- POWER (1) -------- Ion Engine > --- PROPULSION (2) --- Compact Wheel > --- UTILITY (2) ------ Large Storage Unit Targeting Computer > --- WEAPON (2) ------- Assault Rifle Assault Rifle > --- INVENTORY (15) --- Ion Engine Light Treads Light Treads Compact Wheel Cooling System Small Storage Unit Light Armor Plating Light Armor Plating Assault Rifle Grenade Launcher Mining Claw Peak State ------------ > --- POWER ------------ Light Ion Engine > --- PROPULSION ------- Compact Wheel Compact Wheel > --- UTILITY ---------- Large Storage Unit Targeting Computer > --- WEAPON ----------- Light Assault Rifle Light Assault Rifle > --- INVENTORY -------- Ion Engine Light Treads Light Treads Compact Wheel Improved Heat Sink Small Storage Unit Grenade Launcher Mining Claw [Rating: 8] Favorites ----------- Power Light Ion Engine Engine Light Ion Engine Propulsion Compact Wheel Wheel Compact Wheel Utility Targeting Computer Storage Large Storage Unit Processor Targeting Computer Weapon Assault Rifle Energy Gun EM Pulse Gun Ballistic Gun Assault Rifle Launcher Grenade Launcher Build | -11 -10 ------- Run | Scr Mat Slots Evolved . | . . Power . | . . Propulsion . | . . Utility . | . . Weapon . | . . Parts Attached 16 | 6 10 Power 2 | 1 1 Engine 2 | 1 1 Core . | . . Reactor . | . . Propulsion 3 | 2 1 Treads . | . . Leg . | . . Wheel 3 | 2 1 Hover . | . . Flight . | . . Utility 3 | 1 2 Device . | . . Storage 2 | 1 1 Processor 1 | . 1 Hackware . | . . Protection . | . . Artifact . | . . Weapon 8 | 2 6 Energy Gun 1 | 1 . Energy Cannon . | . . Ballistic Gun 6 | 1 5 Ballistic Cannon . | . . Launcher 1 | . 1 Special Weapon . | . . Impact Weapon . | . . Slashing Weapon . | . . Piercing Weapon . | . . Special Melee Weapon . | . . Unidentified Prototypes . | . . Parts Lost 4 | . 4 Power . | . . Propulsion 2 | . 2 Utility . | . . Weapon 2 | . 2 Highest Loss Streak 2 | . 2 To Critical Strikes . | . . Average Slot Usage (%) 95 | . 95 Engine 14 | . 14 Wheel 23 | . 23 Storage 14 | . 14 Processor 13 | . 13 Energy Gun 3 | . 3 Ballistic Gun 23 | . 23 Naked Turns . | . . Heaviest Build 29 | 11 29 Greatest Support 32 | 32 32 Greatest Overweight (x) 1 | . 1 Average Overweight (x) . | . . Largest Inventory Capacity 15 | 8 15 Average Capacity 13 | 7 13 Most Carried 12 | 4 12 Average Carried 8 | 2 8 Final Capacity 15 | 8 15 Final Carried 11 | 4 11 Class Distribution -------------------- 100% | Mutant Dominant Class ---------------- Mutant | -10/Materials Resources | -11 -10 ----------- Run | Scr Mat Matter Collected 552 | 192 360 Remotely . | . . Salvage Created 713 | . 713 Parts 45 | . 45 Haulers Intercepted 1 | . 1 Recyclers Shooed . | . . Parts Field Recycled . | . . Retrieved Matter . | . . Parts Self-Destructed . | . . Prevented . | . . Kills | -11 -10 ------- Run | Scr Mat Combat Hostiles Destroyed 14 | . 14 Guns 14 | . 14 Classes Destroyed 5 | . 5 Hauler 1 | . 1 Recycler 2 | . 2 Watcher 3 | . 3 Swarmer 6 | . 6 Grunt 8 | . 8 Best Kill Streak 6 | . 6 Combat Bots Only 6 | . 6 Max Kills in Single Turn 2 | . 2 Gunslinging . | . . Exploded . | . . Melee . | . . Uniques/NPCs Destroyed . | . . Combat | -11 -10 -------- Run | Scr Mat Damage Taken 822 | . 822 Core 255 | . 255 Absorbed by Shields . | . . Core Remaining (%) 100 | 100 . Volleys Fired 72 | . 72 Largest 2 | . 2 Hottest 60 | . 60 Shots Fired 142 | . 142 Gun 141 | . 141 Cannon . | . . Launcher 1 | . 1 Special . | . . Kinetic 123 | . 123 Thermal . | . . Explosive 1 | . 1 Electromagnetic 18 | . 18 Robot Hit Streak 14 | . 14 Robot Miss Streak 4 | . 4 Penetration Max . | . . Secondary Targets 3 | . 3 Max Gunslinging Chain 1 | . 1 Shots Hit Robots 92 | . 92 Core Hits 34 | . 34 Critical Kills 1 | . 1 Critical Parts Destroyed 1 | . 1 Critical Strikes 3 | . 3 Destroy 2 | . 2 Corrupt 1 | . 1 Melee Attacks . | . . Impact . | . . Slashing . | . . Piercing . | . . Sneak Attacks . | . . Combat Hostiles . | . . Follow-up Attacks . | . . Damage Inflicted 1095 | . 1095 Guns 1074 | . 1074 Cannons . | . . Explosions 21 | . 21 Melee . | . . Ramming . | . . Kinetic 967 | . 967 Thermal 21 | . 21 Explosive . | . . Electromagnetic 107 | . 107 Impact . | . . Slashing . | . . Piercing . | . . Highest Corruption . | . . Average Corruption . | . . Corruption Purged . | . . Corruption Blocked . | . . Overload Shots . | . . Overflow Damage . | . . Projectiles . | . . Explosions . | . . Melee . | . . Knockbacks . | . . Impact . | . . Kinetic . | . . Secondary . | . . Self-Inflicted Damage . | . . Shots . | . . Rammed . | . . Targets Rammed . | . . Kicked . | . . Crushed . | . . Highest Temperature 70 | . 70 Average Temperature 25 | . 25 Received Heat Transfer 351 | . 351 Siege Activations . | . . Robots Corrupted . | . . Combat Hostiles . | . . Parts Fried . | . . Impact Corruptions . | . . Robots Melted . | . . Combat Hostiles . | . . Parts Melted . | . . Heat Transferred 50 | . 50 Parts Sabotaged . | . . Parts Stolen . | . . Parts Stripped . | . . Power Chain Reactions 1 | . 1 Missiles Intercepted . | . . Alert | -11 -10 ------- Run | Scr Mat Peak Influence 323 | . 323 Initial . | . . Average 103 | . 108 Maximum Alert Level 1 | . 1 Low Security (%) 87 | 100 86 Level 1 12 | . 13 Level 2 . | . . Level 3 . | . . Level 4 . | . . Level 5 . | . . High Security . | . . Max Security . | . . Squads Dispatched 6 | . 6 Investigation 4 | . 4 Extermination . | . . Reinforcement 2 | . 2 Assault . | . . Garrison . | . . Intercept . | . . Searches Triggered . | . . Construction Impeded . | . . Haulers Reinforced . | . . Active Scanning Responses . | . . Cargo Convoy Interrupts . | . . Stealth | -11 -10 --------- Run | Scr Mat Distress Signals 1 | . 1 Communications Jammed . | . . Distress Signals . | . . Times Spotted 26 | . 26 Peak Tracking Total 4 | . 4 Tactical Retreats 1 | . 1 Traps | -11 -10 ------- Run | Scr Mat Traps Triggered 1 | . 1 Indirectly . | . . Trap Hack Attempts . | . . Triggered . | . . Disarmed 1 | . 1 Reprogrammed . | . . Reused . | . . Traps Extracted . | . . Installed . | . . Triggered . | . . Machines | -11 -10 ---------- Run | Scr Mat Machines Disabled 2 | . 2 Max in Single Turn 1 | . 1 Machines Sabotaged . | . . Garrisons Compromised . | . . Overloaded Fab Kills . | . . Hacking | -11 -10 --------- Run | Scr Mat Machines Accessed 8 | . 8 Terminals 6 | . 6 Fabricators . | . . Repair Stations . | . . Recycling Units 2 | . 2 Scanalyzers . | . . Garrison Access . | . . Total Hacks 34 | . 34 Successful 21 | . 21 Failed 13 | . 13 Catastrophic 1 | . 1 Database Lockouts . | . . Manual 26 | . 26 Terminals 32 | . 32 Fabricators . | . . Repair Stations . | . . Recycling Units 2 | . 2 Scanalyzers . | . . Garrison Access . | . . Terminal Hacks 13 | . 13 Record 1 | . 1 Robot Analysis 4 | . 4 Prototype ID Bank 1 | . 1 Branch Access Points 1 | . 1 Terminal Index 1 | . 1 Alert Level 1 | . 1 Unreport Threat 1 | . 1 Locate Traps 1 | . 1 Disarm Traps 1 | . 1 Registered Components 1 | . 1 Fabricator Hacks . | . . Repair Station Hacks . | . . Recycling Unit Hacks . | . . Scanalyzer . | . . Garrison Access Hacks . | . . Unauthorized Hacks 8 | . 8 Terminals 6 | . 6 Assimilate 1 | . 1 Botnet 4 | . 4 Operators 1 | . 1 Fabricators . | . . Repair Stations . | . . Recycling Units 2 | . 2 Tunnel 2 | . 2 Scanalyzers . | . . Garrison Access . | . . Data Cores Recovered . | . . Used . | . . Hacking Detections 5 | . 5 Full Trace Events 3 | . 3 Feedback Events . | . . Feedback Blocked . | . . Robot Schematics Acquired . | . . Robots Built . | . . Authchips . | . . Time . | . . Total Robot Build Rating . | . . Part Schematics Acquired . | . . Parts Built . | . . Authchips . | . . Time . | . . Total Part Build Rating . | . . Parts Repaired . | . . Time . | . . Parts Recycled . | . . Recycled Matter . | . . Retrieved Matter . | . . Retrieved Components . | . . Parts Scanalyzed . | . . Part Schematics Acquired . | . . Parts Damaged . | . . Bothacking | -11 -10 ------------ Run | Scr Mat Used RIF Installer . | . . Robots Hacked . | . . Non-combat . | . . Combat . | . . Robot Hacks Applied . | . . Relay Couplers Released . | . . Fabnet Peak Effective % . | . . Robots Rewired . | . . Allies Hacked . | . . Hacks Repelled . | . . Allies | -11 -10 -------- Run | Scr Mat Total Allies 1 | . 1 Largest Group 1 | . 1 Highest-Rated Group 10 | . 10 Highest-Rated Ally 10 | . 10 Total Orders . | . . Ally Attacks . | . . Total Damage . | . . Kills . | . . Allies Corrupted . | . . Allies Melted . | . . Intel | -11 -10 ------- Run | Scr Mat Robot Analysis Total 4 | . 4 Derelict Logs Recovered . | . . Drone Launches . | . . Drone Recoveries . | . . Exploration | -11 -10 ------------- Run | Scr Mat Turns Passed 1011 | 54 957 Spaces Moved 681 | 42 639 Core 2 | 2 . Treads . | . . Legs . | . . Wheels 679 | 40 639 Hover . | . . Flight . | . . Fastest Speed 50 | 50 100 Average Speed 103 | 97 103 Slowest Speed 115 | 100 115 Overloaded Moves . | . . Propulsion Burnouts . | . . Robots Hopped . | . . Cave-ins Triggered . | . . Exploration Rate (%) 46 | 3 89 Regions Visited 1 Branch Regions . Pre-discovered Areas 2 | . 2 Known Exits Taken . | . . Unknown Exits Taken 1 | 1 . Scrap Searched . | . . Spaces Dug . | . . Terrain Destroyed 12 | . 12 Melee . | . . Projectile . | . . AOE 12 | . 12 Terrain Rammed . | . . Walls Destroyed . | . . Machines Disabled . | . . Actions | -11 -10 --------- Run | Scr Mat Total 854 | 51 803 Wait 69 | . 69 Move 680 | 41 639 Hop . | . . Pick Up 13 | 4 9 Fast Attach 8 | 6 2 Attach 2 | . 2 Detach . | . . Swap 6 | . 6 Drop 4 | . 4 Fire 72 | . 72 Melee . | . . Ram . | . . Kick . | . . Crush . | . . Escape Stasis . | . . Rewire . | . . Trap . | . . Miscellaneous . | . . Route ------- -11/Scrapyard -10/Materials (discovered 4 exits: [*Mat x3] / *Min) History --------- Turn | Location | Event 19 | -11/Scrapyard | Discovered new exit (range 16) 55 | -11/Scrapyard | Entered Materials 163 | -10/Materials | Discovered new exit (range 9) 305 | -10/Materials | Build established: Mutant 347 | -10/Materials | Core integrity fell below 50% 503 | -10/Materials | Identified exit to Mines 515 | -10/Materials | Discovered new exit (range 11) 637 | -10/Materials | Core integrity fell below 20% 649 | -10/Materials | Discovered new exit (range 12) 909 | -10/Materials | Discovered new exit (range 10) 1012 | -10/Materials | Destroyed by G-34 Mercenary with Small Laser Last Messages --------------- Retrieving component inventory records... Found 4 registered component stockpiles: 5S06GK79E2: Weapon Shielding 9L828Q5F4H: Lgt. Assault Rifle 2590YALHMR: Sml. Laser ZYJP4DREJD: Lgt. Ion Engine Downloaded coordinate data. >>Traps(Locate) Found 7 traps in 2 arrays: 1x Alarm Trap 6x Alarm Trap Map updated. >>Traps(Disarm) Disarmed 1 Alarm Trap. 00979_ R-06 Scavenger inserts Aluminum Leg into recycling unit. 00982_ Connecting with Recycling Unit... >>Force(Tunnel) DISCOVERED[-4/Extension] 00982_ ALERT: Suspicious activity at Recycling Unit M001. Dispatching Investigation squad. Map ----- +----------------------------------------------------+ | | | | | | | | | | | | | | | | | | | | | | | | | | | | | | | ###############????????#############?????????????? | | # """ """ #????????# #?????????????? | | =# """"""""" #????????# #?????????????? | | # """"" " #????????# #?????????????? | | # #????????#"" """ #?????????????? | | # ! #????????#"Y """ #?????????????? | | " # #????????#"" """ #?????????????? | | " # #????????# #?????????????? | | ########+####################+################???? | | g ????? | | ##### < g @ ????? | | ????# g o ^^^ ????? | | ########+#############+#############^^^####+?????? | | # # #???# T #???????# #?????????? | | # # #???# #???????# #?????????? | | # + #???# = [[ #???????# #?????????? | | # # #???# [[ #???????# #?????????? | | # # ########+######???????# #?????????? | | # = # # #????????????# #?????????? | | + # # #???######???# #?????????? | | # # # #??##!! !##??# #?????????# | | # # # #??#! !#??# #?????????# | | # # #*!! #??#! !#??# #?????????# | | # # #*!! !#?## #####??# #?????????# | | # ? #*!! #?# ######## ########### | | # ?###### #?# + # | | #######??????# #?# # # | | ????#######??####+#####?# # # | | ????# ##### ##### # ## | | ##### # ## """ """ | | / ## """"""""" | | ##### # ## """"" | | ????# ##### ##### # ## !%= | | ###?#######???########### ######### = | | # ??#??????????????#""" #??????# | +----------------------------------------------------+ Best States ------------- Heat Dissipation 25 Energy Generation 10 Energy Capacity 250 Matter Stores 300 Matter Capacity 300 Sight Range 16 Terrain Scan Density 10 Evasion (%) 40 Targeting Accuracy 5 Item Schematics ----------------- None Robot Schematics ------------------ None Fabricated ------------ Nothing Alien Tech Used ----------------- None Achievements -------------- None Challenges ------------ None Game ------ Seed MakeshiftIntegrityCleaver Manual? 0 Play Time 00:14:47 Cumulative 183.2 hours Start 2022.05.20 @ 08:12:28 End 2022.05.20 @ 08:30:32 Sessions 1 Manual Loads 0 Difficulty Rogue Special Mode None Game No. 73 Rogue 66 Adventurer 0 Explorer 7 Win Type - Total 1 Types 0/0/1/0/0/0/0/0/0 Lore% 61 Gallery% 58 Achievement% 48 Wizard Run 0 Options --------- ASCII 0 Keyboard 0 Movement Mouse Keybinds 0 Fullscreen 1 Font 16/Cog Map View 76x50 Tactical HUD 1 Map Filters NONE Filters NONE Steam 1 RUN: 7be91172-97d0-46e0-b4be-374dd456a58e